bitfinex/quotes_SOLUSD_20250718
["timestamp","ask_amount","ask_price","bid_price","bid_amount"]
[1752870316915,5.71297989,175.04,174.95,8.1507]
[1752870317116,16.69855136,175.04,174.99,10.98557147]
[1752870317318,6.39297989,175.04,174.99,10.98557147]
[1752870317521,17.37855136,175.04,175.0,10.98557147]
[1752870317721,6.39297989,175.04,175.0,10.98557147]
[1752870317932,5.71297989,175.04,175.0,10.98557147]
[1752870318124,5.71265641,175.05,175.03,10.98557147]
[1752870318320,2.84144168,175.06,175.03,10.98557147]
[1752870318626,3.52144168,175.06,175.03,10.98557147]
[1752870319535,8.55386447,175.06,174.99,5.71444936]
[1752870319718,8.55386447,175.06,175.02,10.98557147]
[1752870320037,8.55386447,175.06,175.03,10.98557147]
[1752870320241,8.55386447,175.06,174.99,5.71444936]
[1752870320536,8.55386447,175.06,175.03,10.98557147]
[1752870320738,8.55386447,175.06,175.0,16.69984937]
[1752870320739,2.84144168,175.06,175.0,16.69984937]
[1752870321122,8.55381067,175.06,175.02,10.98557147]
[1752870321322,11.66557147,175.05,174.95,8.1507]
[1752870321525,11.66557147,175.05,174.96,5.71559213]
[1752870321526,10.98557147,175.03,174.96,5.71559213]
[1752870321837,11.66557147,175.05,175.0,10.98557147]
[1752870322019,0.68,175.04,174.96,5.71559213]
[1752870322213,0.68,175.04,175.0,10.98557147]
[1752870322412,0.68,175.04,174.96,5.71559213]
[1752870322644,5.71330629,175.03,175.0,10.98557147]
[1752870322843,6.39305868,175.04,174.96,5.71559213]
[1752870323028,6.39305868,175.04,175.0,10.98557147]
[1752870323219,0.68,175.03,174.96,5.71559213]
[1752870323418,5.71305868,175.04,175.0,10.98557147]
[1752870323624,0.68,175.03,174.96,5.71559213]
[1752870323916,9.23386841,175.06,175.02,10.98557147]
[1752870324115,9.23386841,175.06,174.96,20.00457246]
[1752870324322,9.23386841,175.06,175.02,10.98557147]
[1752870324516,6.39296869,175.05,174.98,5.71476762]
[1752870324744,6.39296869,175.05,175.02,10.98557147]
[1752870325124,0.68,175.04,175.01,10.98557147]
[1752870325443,2.84144168,175.06,175.03,10.98557147]
[1752870325641,9.2337974,175.06,175.03,10.98557147]
[1752870325832,9.2337974,175.06,175.02,10.98557147]
[1752870326024,8.5537974,175.06,175.02,10.98557147]
[1752870326224,9.2337974,175.06,175.02,10.98557147]
[1752870326429,0.68,175.05,175.02,10.98557147]
[1752870326829,8.5537974,175.06,175.02,10.98557147]
[1752870327116,2.84144168,175.06,175.05,10.98557147]
[1752870327619,0.03,175.06,175.05,17.63633682]
[1752870327822,0.03,175.07,175.05,19.16613682]
[1752870328018,0.03,175.09,175.06,21.97114294]
[1752870328244,0.03,175.09,175.08,10.98557147]
[1752870329244,0.03,175.09,175.08,16.69724613]
[1752870329427,0.03,175.09,175.08,10.98557147]
[1752870329750,0.03,175.09,175.08,16.69724613]
[1752870329946,0.03,175.09,175.08,28.25398506]
[1752870330247,0.03,175.09,175.08,17.26841359]
[1752870330456,0.03,175.1,175.08,17.26841359]
[1752870330635,0.03,175.1,175.08,6.28284212]
[1752870330821,0.03,175.1,175.06,5.7123272]
[1752870331022,0.03,175.1,175.09,10.98557147]
[1752870331432,0.03,175.1,175.09,22.54227778]
[1752870332142,0.03,175.13,175.09,22.54227778]
[1752870332349,0.03,175.13,175.12,10.98557147]
[1752870332938,2.89244427,175.13,175.12,16.6959415]
[1752870333136,0.03,175.13,175.12,16.6959415]
[1752870333927,0.03,175.13,175.12,10.98557147]
[1752870334448,0.03,175.13,175.09,5.71127787]
[1752870334633,0.03,175.13,175.12,10.98557147]
[1752870334832,0.03,175.13,175.1,10.98557147]
[1752870335041,0.03,175.13,175.09,10.98557147]
[1752870335042,0.68,175.12,175.09,10.98557147]
[1752870335225,0.68,175.11,175.05,13.32193195]
[1752870335430,0.68,175.11,175.05,6.0795]
[1752870335656,11.66557147,175.11,175.06,10.98557147]
[1752870335828,0.68,175.1,175.05,6.0795]
[1752870336151,0.68,175.09,175.06,10.98557147]
[1752870336337,5.71051673,175.12,175.08,10.98557147]
[1752870336540,0.03,175.13,175.1,10.98557147]
[1752870336754,0.03,175.13,175.11,10.98557147]
[1752870337532,0.71,175.13,175.1,10.98557147]
[1752870337734,0.03,175.13,175.11,10.98557147]
[1752870338052,0.03,175.13,175.06,5.7123272]
[1752870338053,0.03,175.13,175.12,10.98557147]
[1752870338660,0.03,175.13,175.11,10.98557147]
[1752870338828,0.03,175.13,175.12,10.98557147]
[1752870340838,0.03,175.13,175.11,10.98557147]
[1752870341030,0.03,175.13,175.12,10.98557147]
[1752870341638,0.03,175.13,175.12,16.6959415]
[1752870343362,0.1,175.17,175.14,5.70971793]
[1752870343545,0.1,175.18,175.16,10.98557147]
[1752870343867,0.1,175.18,175.17,11.55644547]
[1752870344245,0.1,175.2,175.17,22.54201694]
[1752870344478,5.70391999,175.32,175.19,21.97114294]
[1752870344666,4.13680623,175.31,175.23,10.98557147]
[1752870344841,0.68,175.32,175.23,10.98557147]
[1752870344842,4.13680623,175.3,175.23,10.98557147]
[1752870345159,2.84719151,175.3,175.23,10.98557147]
[1752870345345,2.84719151,175.3,175.2,18.12344772]
[1752870345346,4.13355978,175.31,175.29,10.98557147]
[1752870345551,0.72,175.33,175.3,10.98557147]
[1752870345754,0.72,175.33,175.31,10.98557147]
[1752870345941,0.72,175.33,175.32,10.98557147]
[1752870346572,0.72,175.33,175.23,14.26696341]
[1752870346859,0.03,175.37,175.32,10.98557147]
[1752870347051,0.03,175.37,175.36,16.95746008]
[1752870347252,0.75,175.37,175.25,6.1695]
[1752870347461,0.75,175.37,175.35,16.95746008]
[1752870347666,3.57698586,175.37,175.36,16.95746008]
[1752870347974,0.03,175.37,175.36,16.95746008]
[1752870348354,0.03,175.32,175.31,5.70398354]
[1752870348558,0.03,175.32,175.31,22.66144362]
[1752870348871,0.03,175.32,175.31,16.95746008]
[1752870349448,0.03,175.32,175.31,22.66164124]
[1752870349648,0.03,175.32,175.31,16.95746008]
[1752870349868,0.75,175.32,175.3,16.95746008]
[1752870350059,0.03,175.32,175.31,16.95746008]
[1752870350573,0.75,175.32,175.25,11.87558546]
[1752870350778,0.75,175.32,175.28,16.95746008]
[1752870350983,0.72,175.31,175.28,16.95746008]
[1752870351284,0.03,175.32,175.29,16.95746008]
[1752870351663,0.75,175.32,175.29,16.95746008]
[1752870352160,0.75,175.32,174.58,63.55050588]
[1752870352161,17.67746008,175.31,175.26,16.95746008]
[1752870352345,17.67746008,175.3,175.25,16.95746008]
[1752870352655,0.03,175.32,175.26,16.95746008]
[1752870352656,0.72,175.29,175.26,16.95746008]
[1752870352864,16.95746008,175.27,175.16,6.3504]
[1752870353048,17.67746008,175.28,175.23,16.95746008]
[1752870353252,0.72,175.28,175.25,16.95746008]
[1752870353451,6.42428768,175.31,175.27,16.95746008]
[1752870353668,6.42428768,175.31,175.29,16.95746008]
[1752870353961,0.03,175.32,175.3,16.95746008]
[1752870354166,0.03,175.32,175.24,5.70627987]
[1752870354167,5.73395614,175.32,175.24,5.70627987]
[1752870354572,5.73395614,175.32,175.28,16.95746008]
[1752870354754,0.72,175.31,175.28,16.95746008]
[1752870354969,0.72,175.31,175.27,16.95746008]
[1752870355155,0.72,175.3,175.27,16.95746008]
[1752870355357,0.72,175.29,175.27,16.95746008]
[1752870355584,0.72,175.29,175.28,16.95746008]
[1752870356066,5.70458818,175.3,175.28,16.95746008]
[1752870356281,0.72,175.29,175.23,5.70670483]
[1752870356577,0.72,175.29,175.27,16.95746008]
[1752870356775,5.70422359,175.31,175.28,16.95746008]
[1752870356997,0.75,175.32,175.29,16.95746008]
[1752870357279,0.03,175.32,175.29,16.95746008]
[1752870357575,6.42422349,175.31,175.21,5.70743679]
[1752870357773,6.42422349,175.31,175.27,16.95746008]
[1752870357974,0.72,175.3,175.26,16.95746008]
[1752870358359,0.72,175.3,175.21,5.70743679]
[1752870358360,0.03,175.32,175.28,16.95746008]
[1752870358565,0.72,175.31,175.27,16.95746008]
[1752870358765,0.72,175.31,175.21,5.70743679]
[1752870358766,0.72,175.3,175.28,16.95746008]
[1752870359273,0.03,175.32,175.29,16.95746008]
[1752870359472,0.03,175.32,175.21,20.54677243]
[1752870359673,0.03,175.32,175.29,16.95746008]
[1752870360059,0.72,175.31,175.29,16.95746008]
[1752870360360,0.03,175.32,175.23,22.66424544]
[1752870360361,17.67746008,175.3,175.23,22.66424544]
[1752870360556,0.72,175.29,175.24,16.95746008]
[1752870360778,0.75,175.32,175.28,16.95746008]
[1752870360972,0.75,175.32,175.29,16.95746008]
[1752870361287,16.95746008,175.3,175.18,6.2521]
[1752870361587,16.95746008,175.24,175.2,16.95746008]
[1752870362114,16.95746008,175.24,175.18,11.96042701]
[1752870362258,16.95746008,175.22,175.15,5.70939194]
[1752870362458,16.95746008,175.2,175.16,16.95746008]
[1752870362699,16.95746008,175.18,175.11,39.89182098]
[1752870362862,16.95746008,175.17,175.12,16.95746008]
[1752870363064,16.95746008,175.16,175.1,5.71102227]
[1752870363265,0.72,175.16,175.1,5.71102227]
[1752870363475,17.67746008,175.16,175.11,16.95746008]
[1752870363676,16.95746008,175.13,175.06,3.0]
[1752870363875,17.67746008,175.12,175.06,3.0]
[1752870364079,17.67746008,175.12,175.07,16.95746008]
[1752870364594,6.42939194,175.15,175.11,16.95746008]
[1752870364802,17.67746008,175.18,175.13,16.95746008]
[1752870365095,0.72,175.17,175.14,16.95746008]
[1752870365301,0.72,175.16,175.12,16.95746008]
[1752870365706,16.95746008,175.17,175.12,16.95746008]
[1752870366008,0.72,175.15,175.12,16.95746008]
[1752870366167,0.72,175.14,175.12,16.95746008]
[1752870366370,0.72,175.16,175.13,16.95746008]
[1752870366581,16.95746008,175.14,175.06,3.0]
[1752870366793,0.72,175.13,175.06,3.0]
[1752870367044,16.95746008,175.11,175.06,19.95746008]
[1752870367494,0.72,175.1,175.08,16.95746008]
[1752870367697,16.95746008,175.11,175.06,3.0]
[1752870367901,0.72,175.1,175.07,16.95746008]
[1752870368107,6.43002609,175.14,175.08,16.95746008]
[1752870368409,16.95746008,175.13,175.08,16.95746008]
[1752870368585,17.67746008,175.12,175.07,16.95746008]
[1752870368769,0.72,175.11,175.08,16.95746008]
[1752870368972,0.72,175.14,175.1,16.95746008]
[1752870369168,0.72,175.17,175.13,16.95746008]
[1752870369411,4.62093979,175.2,175.06,23.56435715]
[1752870369582,0.72,175.21,175.17,16.95746008]
[1752870369583,6.42750038,175.21,175.17,16.95746008]
[1752870369776,5.70711106,175.22,175.18,16.95746008]
[1752870369982,17.67746008,175.2,175.15,16.95746008]
[1752870370205,24.44998564,175.22,175.13,16.95746008]
[1752870370206,16.95746008,175.18,175.13,16.95746008]
[1752870370411,16.95746008,175.17,175.12,16.95746008]
[1752870370707,16.95746008,175.14,175.09,16.95746008]
[1752870370911,17.67746008,175.13,175.08,16.95746008]
[1752870371197,17.67746008,175.12,175.07,16.95746008]
[1752870371397,0.72,175.11,175.07,16.95746008]
[1752870371985,6.43102227,175.1,175.07,16.95746008]
[1752870372180,5.71075887,175.11,175.07,16.95746008]
[1752870372501,0.72,175.1,175.08,16.95746008]
[1752870372815,17.67746008,175.13,175.06,3.0]
[1752870372987,17.67746008,175.12,175.06,3.0]
[1752870373389,16.95746008,175.09,175.06,3.0]
[1752870373606,19.98287181,175.15,175.06,3.0]
[1752870373607,16.95746008,175.1,175.06,3.0]
[1752870373811,0.72,175.08,175.06,3.0]
[1752870374016,23.38946099,175.07,175.06,3.0]
[1752870374383,23.38946099,175.07,175.06,2.28]
[1752870375006,23.38946099,175.07,175.06,1e-08]
[1752870375604,6.43200091,175.07,175.06,1e-08]
[1752870375896,0.66,175.1,175.06,16.95746009]
[1752870376094,0.66,175.1,175.08,16.95746008]
[1752870376294,0.66,175.13,175.09,16.95746008]
[1752870376513,0.66,175.16,175.07,0.68]
[1752870376813,0.66,175.16,175.12,16.95746008]
[1752870377021,0.66,175.15,175.12,16.95746008]
[1752870377512,0.66,175.14,175.07,0.68]
[1752870377696,16.95746008,175.13,175.06,1e-08]
[1752870377895,16.95746008,175.13,175.08,16.95746008]
[1752870378097,17.61746008,175.12,175.06,1e-08]
[1752870378327,17.61746008,175.12,175.07,16.95746008]
[1752870378623,0.66,175.14,175.11,16.95746008]
[1752870378926,6.36881782,175.17,175.13,16.95746008]
[1752870379112,0.66,175.16,175.14,16.95746008]
[1752870379714,6.36932529,175.16,175.13,16.95746008]
[1752870379915,0.66,175.15,175.11,16.95746008]
[1752870380115,0.66,175.15,175.12,16.95746008]
[1752870380729,0.66,175.14,175.06,5.71227754]
[1752870380910,0.66,175.14,175.09,16.95746008]
[1752870381109,0.66,175.14,175.1,16.95746008]
[1752870381924,0.66,175.13,175.09,16.95746008]
[1752870382114,0.66,175.12,175.06,5.71225103]
[1752870382517,0.66,175.12,175.08,16.95746008]
[1752870382723,16.95746008,175.1,175.06,1e-08]
[1752870382908,16.95746008,175.07,175.06,1e-08]
[1752870383322,17.61746008,175.07,175.06,1e-08]
[1752870383825,23.32946099,175.07,175.06,1e-08]
[1752870384420,6.37200091,175.07,175.06,1e-08]
[1752870384613,23.32946099,175.07,175.06,1e-08]
[1752870385211,6.37200091,175.07,175.06,1e-08]
[1752870385412,23.32946099,175.07,175.06,1e-08]
[1752870386023,23.32946099,175.07,174.96,0.06]
[1752870386024,8.0171,175.06,175.02,1e-08]
[1752870386237,16.95746008,175.03,174.96,0.06]
[1752870386533,8.75903145,175.05,174.96,0.06]
[1752870386713,16.95746008,174.99,174.96,0.06]
[1752870386910,16.95746008,174.98,174.96,0.06]
[1752870387111,0.66,174.98,174.96,0.06]
[1752870387332,16.95746008,175.0,174.96,0.06]
[1752870387516,16.95746008,174.99,174.96,0.06]
[1752870387717,17.61746008,174.98,174.96,0.06]
[1752870387930,5.71526547,174.97,174.96,0.06]
[1752870388427,5.71461226,174.99,174.96,0.06]
[1752870388629,23.3319277,175.0,174.96,0.06]
[1752870389003,16.95746008,174.99,174.96,0.06]
[1752870389209,16.95746008,174.97,174.96,0.06]
[1752870389422,5.71446762,175.0,174.96,0.06]
[1752870389423,0.66,174.98,174.96,0.06]
[1752870389636,16.95746008,174.97,174.96,0.06]
[1752870389916,19.99542961,175.04,174.96,0.06]
[1752870390109,0.66,175.01,174.97,16.95746008]
[1752870390324,6.37297989,175.04,175.0,16.95746008]
[1752870390529,2.882827,175.04,175.03,16.95746008]
[1752870390845,0.66,175.07,175.03,16.95746008]
[1752870390846,6.3720174,175.07,175.03,16.95746008]
[1752870391128,0.66,175.07,175.04,16.95746008]
[1752870391336,6.37212896,175.07,175.04,16.95746008]
[1752870391521,0.66,175.06,174.96,17.01746008]
[1752870391723,5.71212896,175.07,175.04,16.95746008]
[1752870392034,3.48138483,175.07,175.04,16.95746008]
[1752870392231,2.82138483,175.07,175.04,16.95746008]
[1752870392425,5.71167466,175.08,175.04,16.95746008]
[1752870392621,0.66,175.08,175.01,5.71380902]
[1752870392931,17.64746008,175.11,175.07,16.95746008]
[1752870393230,0.69,175.11,175.08,16.95746008]
[1752870393540,0.03,175.11,175.1,16.95746008]
[1752870394126,20.55456654,175.11,175.03,0.68]
[1752870394314,20.55456654,175.11,175.06,16.95746008]
[1752870394520,16.95746008,175.07,175.0,6.8048]
[1752870394721,0.66,175.07,175.01,16.95746008]
[1752870394934,16.95746008,175.06,175.01,16.95746008]
[1752870395123,17.61746008,175.06,175.01,16.95746008]
[1752870395330,2.93710646,175.11,175.0,6.1248]
[1752870395331,17.61746008,175.05,175.0,6.1248]
[1752870395633,0.66,175.05,175.01,16.95746008]
[1752870395818,5.71297989,175.04,175.01,16.95746008]
[1752870396015,5.71297989,175.04,174.98,1.5356]
[1752870396016,23.33043997,175.04,174.98,1.5356]
[1752870396217,16.95746008,175.02,174.98,16.95746008]
[1752870396445,6.37297989,175.04,174.99,16.95746008]
[1752870396621,6.37297989,175.04,175.0,16.95746008]
[1752870396816,23.33043997,175.04,174.99,16.95746008]
[1752870397012,6.37297989,175.04,175.0,16.95746008]
[1752870397432,17.61746008,175.07,175.02,16.95746008]
[1752870397631,23.32987654,175.06,174.97,0.68]
[1752870397832,5.71241646,175.06,175.02,16.95746008]
[1752870398041,6.37241646,175.06,175.02,16.95746008]
[1752870398237,14.27840461,175.09,175.05,16.95746008]
[1752870398238,0.66,175.09,175.05,16.95746008]
[1752870398544,5.71106605,175.1,175.07,16.95746008]
[1752870399322,5.71106605,175.1,175.03,0.68]
[1752870399524,23.32852613,175.1,175.03,0.68]
[1752870399725,23.32852613,175.1,175.06,16.95746008]
[1752870399920,23.32852613,175.1,174.98,6.39493885]
[1752870399921,16.95746008,175.07,174.98,6.39493885]
[1752870400126,16.95746008,175.08,174.98,6.39493885]
[1752870400323,0.03,175.11,175.07,16.95746008]
[1752870400644,0.03,175.11,175.09,16.95746008]
[1752870400944,0.03,175.11,175.04,0.68]
[1752870400945,0.03,175.11,175.1,16.95746008]
[1752870401529,0.03,175.11,175.04,6.2962]
[1752870401759,0.03,175.11,175.1,16.95746008]
[1752870402062,0.03,175.11,175.1,22.66848235]
[1752870402461,0.03,175.11,175.1,23.34848235]
[1752870404536,0.03,175.11,175.1,6.39102227]
[1752870404943,0.03,175.11,175.1,23.34848235]
[1752870407945,0.03,175.11,175.1,6.39102227]
[1752870408125,0.03,175.11,175.1,23.34848235]
[1752870409332,0.03,175.11,175.08,5.71137264]
[1752870409539,0.03,175.11,175.1,16.95746008]
[1752870410932,0.03,175.11,175.1,12.6983031]
[1752870411134,0.03,175.11,175.08,5.71160521]
[1752870411449,0.03,175.11,175.1,12.0483031]
[1752870412335,0.03,175.11,175.08,5.71160521]
[1752870412336,0.7,175.11,175.04,6.2962]
[1752870412545,12.7483031,175.11,175.06,12.0483031]
[1752870412753,0.67,175.1,175.07,12.0483031]
[1752870412955,0.03,175.11,175.07,12.0483031]
[1752870413140,12.0483031,175.09,175.05,12.0483031]
[1752870413344,0.03,175.11,175.07,12.0483031]
[1752870413860,0.7,175.11,175.07,12.0483031]
[1752870414329,6.41092217,175.11,175.07,12.0483031]
[1752870414964,17.78922527,175.11,175.06,12.0483031]
[1752870415136,0.67,175.1,175.06,12.0483031]
[1752870415337,0.67,175.1,175.07,12.0483031]
[1752870415861,0.67,175.1,175.05,5.71259393]
[1752870416060,0.67,175.1,175.07,12.0483031]
[1752870416635,0.03,175.11,175.09,12.0483031]
[1752870416860,12.0783031,175.11,175.06,12.0483031]
[1752870417074,0.67,175.1,175.06,12.0483031]
[1752870417237,0.67,175.1,175.07,12.0483031]
[1752870417558,0.03,175.11,175.08,12.0483031]
[1752870417761,0.03,175.11,175.09,12.0483031]
[1752870418067,0.03,175.11,175.08,12.0483031]
[1752870418388,5.74072838,175.11,175.04,6.36297989]
[1752870418668,5.74072838,175.11,175.06,12.0483031]
[1752870418669,6.38128726,175.1,175.06,12.0483031]
[1752870419037,0.67,175.09,175.06,12.0483031]
[1752870419256,0.67,175.09,175.05,12.0483031]
[1752870420151,0.03,175.11,175.05,12.0483031]
[1752870420152,0.67,175.08,175.05,12.0483031]
[1752870420353,5.74075593,175.11,175.05,12.0483031]
[1752870420354,5.74075593,175.11,175.07,12.0483031]
[1752870420577,6.41075593,175.11,175.07,12.0483031]
[1752870421163,0.67,175.1,175.08,12.0483031]
[1752870421667,12.0483031,175.09,175.03,5.71330629]
[1752870421869,0.67,175.09,175.05,12.0483031]
[1752870422079,0.67,175.09,175.02,6.42353799]
[1752870422243,12.0483031,175.06,175.02,0.06]
[1752870422438,0.67,175.08,175.02,0.06]
[1752870422743,0.67,175.08,174.96,0.06]
[1752870422744,8.1821,175.02,174.96,0.06]
[1752870422942,8.1821,175.02,174.92,3.0]
[1752870423154,10.0,174.99,174.92,2.48]
[1752870423377,10.0,174.97,174.92,1e-08]
[1752870423563,20.00114291,174.99,174.92,1e-08]
[1752870423776,30.00114291,174.99,174.92,1e-08]
[1752870424104,12.0483031,174.93,174.92,1e-08]
[1752870424301,37.15114291,174.99,174.89,0.06]
[1752870424500,10.0,174.97,174.89,0.06]
[1752870424802,12.0483031,174.92,174.89,0.06]
[1752870424959,17.05589288,174.9,174.86,0.65]
[1752870425157,17.05589288,174.96,174.84,0.85]
[1752870425462,17.15,174.98,174.84,0.2]
[1752870425677,17.05589288,174.97,174.91,17.05589288]
[1752870426011,5.7139592,175.01,174.89,0.65]
[1752870426165,4.61940867,174.99,174.91,17.05589288]
[1752870426367,19.9988572,175.01,174.91,0.65]
[1752870426368,5.7139592,175.01,174.91,0.65]
[1752870426664,5.7139592,175.01,174.88,0.2]
[1752870426665,10.0,175.0,174.88,0.2]
[1752870426963,17.05589288,174.94,174.88,0.2]
[1752870427182,17.05589288,174.92,174.88,0.2]
[1752870427373,10.0,174.97,174.88,0.2]
[1752870427554,5.71461226,174.99,174.88,0.85]
[1752870427970,5.71461226,174.99,174.89,0.65]
[1752870428476,10.32631706,175.01,174.89,0.65]
[1752870428664,5.7142118,175.01,174.89,0.65]
[1752870428985,14.28201255,175.05,174.89,0.65]
[1752870428986,5.71354913,175.03,174.96,17.05589288]
[1752870429279,22.76944201,175.03,174.97,17.05589288]
[1752870429485,22.76944201,175.03,174.94,0.65]
[1752870429667,5.71354913,175.03,174.91,0.65]
[1752870430200,5.71354913,175.03,174.94,17.05589288]
[1752870430479,17.05589288,174.95,174.9,17.05589288]
[1752870430677,19.99681485,175.03,174.88,0.85]
[1752870430678,10.0,175.02,174.88,0.2]
[1752870430881,17.05589288,174.89,174.88,0.2]
[1752870431292,16.4574,174.95,174.88,0.2]
[1752870431582,0.5,174.89,174.88,0.2]
[1752870431785,17.05589288,174.89,174.88,0.2]
[1752870432393,30.00685948,174.94,174.88,0.2]
[1752870432690,17.05589288,174.89,174.88,0.2]
[1752870432866,20.00685948,174.94,174.88,0.2]
[1752870433378,30.00685948,174.94,174.88,0.2]
[1752870433587,17.05589288,174.89,174.88,0.2]
[1752870433968,20.00800319,174.93,174.88,0.2]
[1752870434485,17.05589288,174.89,174.88,0.2]
[1752870434691,20.00800319,174.93,174.88,0.2]
[1752870434865,17.05589288,174.89,174.88,0.2]
[1752870435691,22.77377269,174.89,174.88,0.2]
[1752870436173,5.71787981,174.89,174.88,0.2]
[1752870436776,22.77377269,174.89,174.88,0.2]
[1752870436965,22.77377269,174.89,174.81,0.06]
[1752870436966,10.0,174.88,174.81,0.06]
[1752870437402,17.05589288,174.82,174.74,10.9607438]
[1752870437683,22.77835353,174.75,174.74,10.9607438]
[1752870437883,22.77835353,174.75,174.69,40.0]
[1752870438182,21.28519288,174.7,174.69,1e-08]
[1752870438482,4.2293,174.7,174.56,11.40418703]
[1752870438680,14.2293,174.7,174.56,11.40418703]
[1752870439282,14.2293,174.7,174.57,17.05589288]
[1752870439283,17.05589288,174.61,174.57,17.05589288]
[1752870439465,17.05589288,174.61,174.56,28.46007991]
[1752870439659,4.59746114,174.67,174.6,17.05589288]
[1752870439869,4.59746114,174.67,174.6,0.7]
[1752870440072,4.59746114,174.67,174.6,17.75589288]
[1752870440274,4.59746114,174.67,174.61,0.7]
[1752870440471,6.7176855,174.7,174.61,0.7]
[1752870440863,10.2825721,174.78,174.61,0.7]
[1752870441185,24.58626817,174.78,174.63,17.05589288]
[1752870441385,31.04356817,174.78,174.64,0.7]
[1752870441585,10.2825721,174.78,174.67,17.05589288]
[1752870441881,17.05589288,174.74,174.68,17.05589288]
[1752870442113,26.81455149,174.79,174.66,17.05589288]
[1752870442260,26.81455149,174.79,174.67,17.05589288]
[1752870442261,17.05589288,174.72,174.67,17.05589288]
[1752870442456,26.81455149,174.79,174.67,17.75589288]
[1752870442662,26.81455149,174.79,174.71,17.05589288]
[1752870442663,12.51167376,174.79,174.71,17.05589288]
[1752870442860,6.79028148,174.79,174.75,17.05589288]
[1752870443086,6.79028148,174.79,174.61,59.2526201]
[1752870443387,17.05589288,174.77,174.62,0.7]
[1752870443588,17.05589288,174.78,174.73,17.05589288]
[1752870443971,17.05589288,174.78,174.73,22.77894003]
[1752870444376,12.51149016,174.79,174.71,5.72348145]
[1752870444575,17.05589288,174.75,174.71,5.72348145]
[1752870444774,6.79028148,174.79,174.72,17.05589288]
[1752870444973,17.05589288,174.77,174.72,17.05589288]
[1752870445196,6.79028148,174.79,174.72,17.05589288]
[1752870445372,17.05589288,174.77,174.72,17.05589288]
[1752870445575,17.05589288,174.77,174.71,6.42348145]
[1752870445774,17.05589288,174.77,174.72,17.05589288]
[1752870446190,6.79028148,174.79,174.72,17.05589288]
[1752870446393,17.05589288,174.77,174.72,17.05589288]
[1752870446570,6.79028148,174.79,174.67,14.31229822]
[1752870446571,12.51156924,174.79,174.7,5.72406234]
[1752870446891,17.05589288,174.76,174.7,6.42406234]
[1752870447068,6.79028148,174.79,174.71,0.7]
[1752870447493,6.79028148,174.79,174.75,17.05589288]
[1752870447695,23.84617436,174.79,174.71,0.7]
[1752870447873,17.05589288,174.78,174.72,5.72344322]
[1752870448070,17.05589288,174.76,174.71,6.42373792]
[1752870448274,17.05589288,174.74,174.69,17.05589288]
[1752870448490,12.51144847,174.79,174.7,17.05589288]
[1752870448794,17.05589288,174.76,174.71,17.05589288]
[1752870448997,17.05589288,174.76,174.71,17.75589288]
[1752870449176,17.05589288,174.76,174.71,0.7]
[1752870449500,4.05570907,174.75,174.7,17.05589288]
[1752870449799,17.05589288,174.74,174.69,17.05589288]
[1752870449995,17.05589288,174.71,174.66,5.72540936]
[1752870450174,17.05589288,174.69,174.66,5.72540936]
[1752870450376,5.72147843,174.78,174.66,5.72540936]
[1752870450579,4.05402931,174.77,174.66,5.72540936]
[1752870450782,4.05402931,174.76,174.66,5.72540936]
[1752870451090,4.05402931,174.75,174.66,5.72540936]
[1752870451297,4.05402931,174.74,174.66,5.72540936]
[1752870451481,4.05402931,174.73,174.66,5.72540936]
[1752870451681,4.05402931,174.72,174.66,5.72540936]
[1752870451870,4.05402931,174.71,174.66,5.72540936]
[1752870452071,17.05589288,174.68,174.64,17.05589288]
[1752870452289,4.05402931,174.67,174.64,17.05589288]
[1752870452498,17.05589288,174.68,174.64,17.05589288]
[1752870452499,4.05402931,174.66,174.64,17.75589288]
[1752870452671,17.05589288,174.68,174.64,17.75589288]
[1752870452878,4.05208315,174.67,174.65,0.7]
[1752870453094,17.05589288,174.68,174.65,0.7]
[1752870453299,4.05051775,174.67,174.66,0.7]
[1752870453495,17.05589288,174.68,174.66,0.7]
[1752870453703,17.05589288,174.68,174.67,0.7]
[1752870453883,17.05589288,174.68,174.64,17.05589288]
[1752870454197,17.05589288,174.68,174.64,17.75589288]